[Event "Titled Tuesday Blitz May 30 Late 2023"]
[White "KSho99"]
[Black "Filgueira, Hernan"]
[BlackFideId "101770"]
[WhiteElo "2210"]
[BlackElo "2363"]
[Result "0-1"]
[Round "04"]
[TimeControl "180+2"]
[Date "2023.05.31"]
[WhiteClock "0:00:02"]
[BlackClock "0:00:47"]

1. Nf3 {[%clk 0:03:00]}  d6 {[%clk 0:02:59]} 2. d4 {[%clk 0:02:58]}  g6 {[%clk 0:02:58]} 3. b3 {[%clk 0:02:56]}  Bg7 {[%clk 0:02:57]} 4. Bb2 {[%clk 0:02:57]}  c5 {[%clk 0:02:57]} 5. e3 {[%clk 0:02:57]}  cxd4 {[%clk 0:02:52]} 6. Nxd4 {[%clk 0:02:57]}  Nf6 {[%clk 0:02:51]} 7. Be2 {[%clk 0:02:50]}  Nc6 {[%clk 0:02:50]} 8. O-O {[%clk 0:02:49]}  O-O {[%clk 0:02:49]} 9. c4 {[%clk 0:02:49]}  Bd7 {[%clk 0:02:47]} 10. Nd2 {[%clk 0:02:29]}  Rc8 {[%clk 0:02:45]} 11. Rc1 {[%clk 0:02:25]}  a6 {[%clk 0:02:44]} 12. Bf3 {[%clk 0:02:12]}  Qb6 {[%clk 0:02:41]} 13. Qc2 {[%clk 0:02:02]}  h5 {[%clk 0:02:23]} 14. Qb1 {[%clk 0:01:59]}  e5 {[%clk 0:02:09]} 15. Nxc6 {[%clk 0:01:55]}  bxc6 {[%clk 0:02:05]} 16. c5 {[%clk 0:01:53]}  dxc5 {[%clk 0:02:00]} 17. Bxe5 {[%clk 0:01:51]}  Be6 {[%clk 0:01:53]} 18. Qa1 {[%clk 0:01:34]}  Ne8 {[%clk 0:01:52]} 19. Ne4 {[%clk 0:01:14]}  c4 {[%clk 0:01:45]} 20. bxc4 {[%clk 0:00:50]}  Qa5 {[%clk 0:01:36]} 21. Bxg7 {[%clk 0:00:47]}  Nxg7 {[%clk 0:01:36]} 22. Nf6+ {[%clk 0:00:27]}  Kh8 {[%clk 0:01:35]} 23. Rfd1 {[%clk 0:00:25]}  Qc5 {[%clk 0:01:25]} 24. Qd4 {[%clk 0:00:12]}  Qxd4 {[%clk 0:01:24]} 25. Rxd4 {[%clk 0:00:11]}  Rc7 {[%clk 0:01:22]} 26. Rb1 {[%clk 0:00:09]}  c5 {[%clk 0:01:19]} 27. Rd6 {[%clk 0:00:04]}  Bxc4 {[%clk 0:01:14]} 28. Rc1 {[%clk 0:00:03]}  Bxa2 {[%clk 0:01:06]} 29. Rxa6 {[%clk 0:00:03]}  Be6 {[%clk 0:01:06]} 30. Ne4 {[%clk 0:00:02]}  c4 {[%clk 0:01:01]} 31. Ng5 {[%clk 0:00:02]}  Rd8 {[%clk 0:00:56]} 32. Nxe6 {[%clk 0:00:02]}  Nxe6 {[%clk 0:00:55]} 33. g3 {[%clk 0:00:02]}  Kg7 {[%clk 0:00:49]} 34. Ra4 {[%clk 0:00:02]}  c3 {[%clk 0:00:47]} 0-1


[Site "https://www.chess.com"]

[Event "Titled Tuesday Blitz May 30 Late 2023"]
[White "Bashirli, Nail"]
[Black "MariusBieliauskas"]
[WhiteFideId "13406809"]
[WhiteElo "2311"]
[BlackElo "2467"]
[Result "1-0"]
[Round "04"]
[TimeControl "180+2"]
[Date "2023.05.31"]
[WhiteClock "0:02:28"]
[BlackClock "0:02:18"]

1. Nf3 {[%clk 0:03:00]}  c5 {[%clk 0:02:59]} 2. c4 {[%clk 0:02:57]}  g6 {[%clk 0:02:55]} 3. h4 {[%clk 0:02:55]}  h5 {[%clk 0:02:52]} 4. Nc3 {[%clk 0:02:54]}  Nf6 {[%clk 0:02:52]} 5. d4 {[%clk 0:02:53]}  cxd4 {[%clk 0:02:52]} 6. Nxd4 {[%clk 0:02:54]}  Bg7 {[%clk 0:02:52]} 7. g3 {[%clk 0:02:53]}  Nc6 {[%clk 0:02:52]} 8. Nc2 {[%clk 0:02:52]}  O-O {[%clk 0:02:50]} 9. Bg2 {[%clk 0:02:52]}  d6 {[%clk 0:02:50]} 10. O-O {[%clk 0:02:53]}  Be6 {[%clk 0:02:46]} 11. Nd5 {[%clk 0:02:53]}  Bxd5 {[%clk 0:02:44]} 12. cxd5 {[%clk 0:02:53]}  Ne5 {[%clk 0:02:45]} 13. Bg5 {[%clk 0:02:51]}  Rc8 {[%clk 0:02:39]} 14. Rc1 {[%clk 0:02:50]}  Qa5 {[%clk 0:02:38]} 15. a3 {[%clk 0:02:41]}  Nc4 {[%clk 0:02:38]} 16. b4 {[%clk 0:02:40]}  Qa4 {[%clk 0:02:24]} 17. Bh3 {[%clk 0:02:31]}  Rc7 {[%clk 0:02:19]} 18. Ne3 {[%clk 0:02:30]}  Nxe3 {[%clk 0:02:18]} 19. Qxa4 {[%clk 0:02:28]} 1-0


[Site "https://www.chess.com"]

[Event "Titled Tuesday Blitz May 30 Late 2023"]
[White "laziestwin"]
[Black "Wizard_of_Odds"]
[WhiteElo "2650"]
[BlackElo "2438"]
[Result "1-0"]
[Round "04"]
[TimeControl "180+2"]
[Date "2023.05.31"]
[WhiteClock "0:00:21"]
[BlackClock "0:00:02"]

1. b3 {[%clk 0:03:00]}  Nf6 {[%clk 0:02:56]} 2. Bb2 {[%clk 0:03:01]}  e6 {[%clk 0:02:57]} 3. e3 {[%clk 0:03:01]}  d5 {[%clk 0:02:57]} 4. c4 {[%clk 0:03:01]}  Be7 {[%clk 0:02:54]} 5. Nf3 {[%clk 0:03:01]}  O-O {[%clk 0:02:52]} 6. Qc2 {[%clk 0:03:01]}  a5 {[%clk 0:02:43]} 7. Nc3 {[%clk 0:02:57]}  Nc6 {[%clk 0:02:38]} 8. Be2 {[%clk 0:02:52]}  e5 {[%clk 0:02:23]} 9. cxd5 {[%clk 0:02:49]}  Nb4 {[%clk 0:02:21]} 10. Qb1 {[%clk 0:02:49]}  Nfxd5 {[%clk 0:02:10]} 11. Nxe5 {[%clk 0:02:18]}  Bd6 {[%clk 0:02:07]} 12. Nxd5 {[%clk 0:02:15]}  Nxd5 {[%clk 0:02:07]} 13. O-O {[%clk 0:02:14]}  Re8 {[%clk 0:02:02]} 14. Nc4 {[%clk 0:02:04]}  Bb4 {[%clk 0:01:35]} 15. Bf3 {[%clk 0:02:04]}  Be6 {[%clk 0:01:28]} 16. a3 {[%clk 0:02:02]}  Bf8 {[%clk 0:01:24]} 17. Qc2 {[%clk 0:02:01]}  f6 {[%clk 0:01:18]} 18. d3 {[%clk 0:01:57]}  b5 {[%clk 0:01:11]} 19. Nd2 {[%clk 0:01:57]}  c5 {[%clk 0:01:11]} 20. Rac1 {[%clk 0:01:51]}  Qb6 {[%clk 0:01:07]} 21. Ne4 {[%clk 0:01:43]}  Rac8 {[%clk 0:01:04]} 22. Nc3 {[%clk 0:01:41]}  Nc7 {[%clk 0:00:55]} 23. Rfd1 {[%clk 0:01:37]}  Red8 {[%clk 0:00:54]} 24. Ne2 {[%clk 0:01:34]}  Bf7 {[%clk 0:00:51]} 25. d4 {[%clk 0:01:30]}  Ne6 {[%clk 0:00:37]} 26. dxc5 {[%clk 0:01:05]}  Bxc5 {[%clk 0:00:35]} 27. Be4 {[%clk 0:00:37]}  Ng5 {[%clk 0:00:24]} 28. Bf5 {[%clk 0:00:33]}  Rxd1+ {[%clk 0:00:20]} 29. Qxd1 {[%clk 0:00:32]}  Rd8 {[%clk 0:00:15]} 30. Bd4 {[%clk 0:00:29]}  Bxd4 {[%clk 0:00:11]} 31. Nxd4 {[%clk 0:00:30]}  g6 {[%clk 0:00:03]} 32. Bd3 {[%clk 0:00:29]}  b4 {[%clk 0:00:02]} 33. axb4 {[%clk 0:00:28]}  axb4 {[%clk 0:00:03]} 34. Bc4 {[%clk 0:00:22]}  Bxc4 {[%clk 0:00:03]} 35. Rxc4 {[%clk 0:00:23]}  Ne6 {[%clk 0:00:03]} 36. h3 {[%clk 0:00:22]}  Kg7 {[%clk 0:00:02]} 37. Nxe6+ {[%clk 0:00:21]} 1-0


[Site "https://www.chess.com"]

[Event "Titled Tuesday Blitz May 30 Late 2023"]
[White "Haydon, David L"]
[Black "Rama, Tejas"]
[WhiteFideId "415405"]
[BlackFideId "30907381"]
[WhiteElo "2326"]
[BlackElo "2089"]
[Result "1-0"]
[Round "04"]
[TimeControl "180+2"]
[Date "2023.05.31"]
[WhiteClock "0:01:45"]
[BlackClock "0:00:44"]

1. e4 {[%clk 0:03:00]}  c5 {[%clk 0:02:49]} 2. Nf3 {[%clk 0:03:00]}  d6 {[%clk 0:02:48]} 3. Bb5+ {[%clk 0:03:00]}  Qd7 {[%clk 0:02:46]} 4. Bxd7+ {[%clk 0:02:59]}  Bxd7 {[%clk 0:02:37]} 5. d4 {[%clk 0:02:59]}  cxd4 {[%clk 0:02:35]} 6. Nxd4 {[%clk 0:02:59]}  Nf6 {[%clk 0:02:36]} 7. Nc3 {[%clk 0:02:59]}  e6 {[%clk 0:02:34]} 8. h3 {[%clk 0:02:59]}  a6 {[%clk 0:02:34]} 9. a4 {[%clk 0:02:58]}  Be7 {[%clk 0:02:34]} 10. O-O {[%clk 0:02:57]}  O-O {[%clk 0:02:35]} 11. Be3 {[%clk 0:02:56]}  Rc8 {[%clk 0:02:35]} 12. Qd2 {[%clk 0:02:56]}  Nc6 {[%clk 0:02:30]} 13. Nxc6 {[%clk 0:02:55]}  Rxc6 {[%clk 0:02:30]} 14. Rfd1 {[%clk 0:02:54]}  Rac8 {[%clk 0:02:30]} 15. a5 {[%clk 0:02:54]}  Rc4 {[%clk 0:02:26]} 16. f3 {[%clk 0:02:51]}  Ne8 {[%clk 0:02:18]} 17. Bd4 {[%clk 0:02:44]}  d5 {[%clk 0:02:10]} 18. exd5 {[%clk 0:02:43]}  Rxd4 {[%clk 0:02:10]} 19. Qxd4 {[%clk 0:02:43]}  Bc5 {[%clk 0:02:09]} 20. Qxc5 {[%clk 0:02:41]}  Rxc5 {[%clk 0:02:10]} 21. dxe6 {[%clk 0:02:42]}  Bxe6 {[%clk 0:02:10]} 22. Rd2 {[%clk 0:02:40]}  Kf8 {[%clk 0:02:10]} 23. Ne4 {[%clk 0:02:40]}  Rb5 {[%clk 0:02:00]} 24. b3 {[%clk 0:02:39]}  Ke7 {[%clk 0:01:58]} 25. Rd3 {[%clk 0:02:34]}  Nc7 {[%clk 0:01:47]} 26. c4 {[%clk 0:02:31]}  Rb4 {[%clk 0:01:37]} 27. Nc5 {[%clk 0:02:31]}  Bc8 {[%clk 0:01:32]} 28. Ra4 {[%clk 0:02:21]}  Rxa4 {[%clk 0:01:31]} 29. Nxa4 {[%clk 0:02:20]}  Bf5 {[%clk 0:01:27]} 30. Re3+ {[%clk 0:02:20]}  Kd6 {[%clk 0:01:27]} 31. g4 {[%clk 0:02:17]}  Bc2 {[%clk 0:01:22]} 32. Rc3 {[%clk 0:02:14]}  Bb1 {[%clk 0:01:20]} 33. Kf2 {[%clk 0:02:13]}  Ne6 {[%clk 0:01:19]} 34. Ke3 {[%clk 0:02:13]}  g5 {[%clk 0:01:18]} 35. Rc1 {[%clk 0:02:05]}  Ba2 {[%clk 0:01:12]} 36. b4 {[%clk 0:02:00]}  Bb3 {[%clk 0:01:09]} 37. Nb2 {[%clk 0:01:57]}  Nf4 {[%clk 0:01:03]} 38. Nd3 {[%clk 0:01:57]}  Nxh3 {[%clk 0:00:58]} 39. Rh1 {[%clk 0:01:56]}  Nf4 {[%clk 0:00:57]} 40. c5+ {[%clk 0:01:55]}  Kc6 {[%clk 0:00:54]} 41. Nxf4 {[%clk 0:01:55]}  gxf4+ {[%clk 0:00:55]} 42. Kd4 {[%clk 0:01:51]}  Bc2 {[%clk 0:00:48]} 43. Kc3 {[%clk 0:01:46]}  Bg6 {[%clk 0:00:46]} 44. Rd1 {[%clk 0:01:45]}  f5 {[%clk 0:00:45]} 45. Rd6+ {[%clk 0:01:44]}  Kc7 {[%clk 0:00:44]} 46. gxf5 {[%clk 0:01:44]}  Bxf5 {[%clk 0:00:44]} 47. Rf6 {[%clk 0:01:45]} 1-0


[Site "https://www.chess.com"]

[Event "Titled Tuesday Blitz May 30 Late 2023"]
[White "Nasir, Zehn"]
[Black "Devagharan, Devina"]
[WhiteFideId "2613239"]
[BlackFideId "2061600"]
[WhiteElo "1993"]
[BlackElo "2427"]
[Result "0-1"]
[Round "04"]
[TimeControl "180+2"]
[Date "2023.05.31"]
[WhiteClock "0:00:05"]
[BlackClock "0:00:09"]

1. d4 {[%clk 0:03:00]}  d5 {[%clk 0:02:57]} 2. Bf4 {[%clk 0:03:00]}  Nf6 {[%clk 0:02:55]} 3. e3 {[%clk 0:03:01]}  e6 {[%clk 0:02:46]} 4. Nf3 {[%clk 0:02:58]}  Bd6 {[%clk 0:02:45]} 5. Bg3 {[%clk 0:02:58]}  O-O {[%clk 0:02:40]} 6. Bd3 {[%clk 0:02:56]}  c5 {[%clk 0:02:38]} 7. c3 {[%clk 0:02:56]}  Nc6 {[%clk 0:02:35]} 8. Ne5 {[%clk 0:02:56]}  Qc7 {[%clk 0:02:20]} 9. f4 {[%clk 0:02:56]}  Ne4 {[%clk 0:02:14]} 10. Nd2 {[%clk 0:02:53]}  f6 {[%clk 0:01:56]} 11. Nxc6 {[%clk 0:02:06]}  Qxc6 {[%clk 0:01:53]} 12. Nxe4 {[%clk 0:01:54]}  dxe4 {[%clk 0:01:53]} 13. Be2 {[%clk 0:01:51]}  f5 {[%clk 0:01:31]} 14. O-O {[%clk 0:01:50]}  Bd7 {[%clk 0:01:20]} 15. Qb3 {[%clk 0:01:43]}  b5 {[%clk 0:00:58]} 16. Rad1 {[%clk 0:01:28]}  c4 {[%clk 0:00:50]} 17. Qc2 {[%clk 0:01:28]}  Qd5 {[%clk 0:00:47]} 18. Kh1 {[%clk 0:01:23]}  Be7 {[%clk 0:00:44]} 19. Be1 {[%clk 0:01:16]}  Bc6 {[%clk 0:00:36]} 20. g4 {[%clk 0:01:10]}  g6 {[%clk 0:00:33]} 21. Rg1 {[%clk 0:01:09]}  Kh8 {[%clk 0:00:32]} 22. Bf2 {[%clk 0:01:07]}  Qd7 {[%clk 0:00:31]} 23. Rg3 {[%clk 0:01:05]}  Bd5 {[%clk 0:00:31]} 24. Rdg1 {[%clk 0:01:02]}  Rf7 {[%clk 0:00:28]} 25. a3 {[%clk 0:01:01]}  a5 {[%clk 0:00:28]} 26. Qd1 {[%clk 0:01:00]}  b4 {[%clk 0:00:27]} 27. axb4 {[%clk 0:00:54]}  axb4 {[%clk 0:00:28]} 28. Qf1 {[%clk 0:00:54]}  bxc3 {[%clk 0:00:27]} 29. bxc3 {[%clk 0:00:54]}  Ra2 {[%clk 0:00:26]} 30. Be1 {[%clk 0:00:48]}  Ra4 {[%clk 0:00:24]} 31. Qh3 {[%clk 0:00:46]}  Kg8 {[%clk 0:00:17]} 32. gxf5 {[%clk 0:00:44]}  exf5 {[%clk 0:00:18]} 33. Bh5 {[%clk 0:00:41]}  Rg7 {[%clk 0:00:16]} 34. Bd1 {[%clk 0:00:37]}  Ra6 {[%clk 0:00:16]} 35. Qh6 {[%clk 0:00:36]}  Bf8 {[%clk 0:00:15]} 36. Qg5 {[%clk 0:00:35]}  Qe7 {[%clk 0:00:15]} 37. Qh6 {[%clk 0:00:29]}  Rf6 {[%clk 0:00:13]} 38. R3g2 {[%clk 0:00:28]}  g5 {[%clk 0:00:13]} 39. Qh5 {[%clk 0:00:24]}  g4 {[%clk 0:00:13]} 40. Bh4 {[%clk 0:00:21]}  Bf7 {[%clk 0:00:12]} 41. Bxf6 {[%clk 0:00:19]}  Qxf6 {[%clk 0:00:12]} 42. Qg5 {[%clk 0:00:09]}  Rxg5 {[%clk 0:00:12]} 43. fxg5 {[%clk 0:00:10]}  Qd6 {[%clk 0:00:10]} 44. h3 {[%clk 0:00:09]}  gxh3 {[%clk 0:00:09]} 45. Rg3 {[%clk 0:00:08]}  Bg6 {[%clk 0:00:09]} 46. Rxh3 {[%clk 0:00:09]}  Bg7 {[%clk 0:00:10]} 47. Bh5 {[%clk 0:00:08]}  Bf8 {[%clk 0:00:08]} 48. Bxg6 {[%clk 0:00:07]}  hxg6 {[%clk 0:00:07]} 49. Kg2 {[%clk 0:00:07]}  Bg7 {[%clk 0:00:08]} 50. Rf1 {[%clk 0:00:04]}  Qa3 {[%clk 0:00:08]} 51. Rhh1 {[%clk 0:00:04]}  Qxc3 {[%clk 0:00:08]} 52. Re1 {[%clk 0:00:05]}  Qd2+ {[%clk 0:00:09]} 53. Kg3 {[%clk 0:00:05]}  c3 {[%clk 0:00:09]} 54. Rd1 {[%clk 0:00:04]}  Qxe3+ {[%clk 0:00:09]} 55. Kg2 {[%clk 0:00:05]}  c2 {[%clk 0:00:09]} 56. Ra1 {[%clk 0:00:04]}  f4 {[%clk 0:00:07]} 57. Ra8+ {[%clk 0:00:04]}  Kf7 {[%clk 0:00:07]} 58. Ra7+ {[%clk 0:00:05]}  Ke6 {[%clk 0:00:08]} 59. Rxg7 {[%clk 0:00:04]}  f3+ {[%clk 0:00:08]} 60. Kh2 {[%clk 0:00:03]}  Qf2+ {[%clk 0:00:07]} 61. Kh3 {[%clk 0:00:03]}  Qg2+ {[%clk 0:00:08]} 62. Kh4 {[%clk 0:00:04]}  Qxh1+ {[%clk 0:00:08]} 63. Kg4 {[%clk 0:00:05]}  Qg2+ {[%clk 0:00:08]} 64. Kf4 {[%clk 0:00:05]}  c1=Q+ {[%clk 0:00:08]} 65. Kxe4 {[%clk 0:00:05]}  Qe2# {[%clk 0:00:09]} 0-1


[Site "https://www.chess.com"]

[Event "Titled Tuesday Blitz May 30 Late 2023"]
[White "koncheto"]
[Black "Tarasova, Viktoriya"]
[BlackFideId "4175840"]
[WhiteElo "2591"]
[BlackElo "2182"]
[Result "1-0"]
[Round "04"]
[TimeControl "180+2"]
[Date "2023.05.31"]
[WhiteClock "0:01:01"]
[BlackClock "0:00:19"]

1. d4 {[%clk 0:02:58]}  Nf6 {[%clk 0:02:56]} 2. Bg5 {[%clk 0:02:58]}  d5 {[%clk 0:02:52]} 3. h4 {[%clk 0:02:56]}  Bf5 {[%clk 0:02:48]} 4. Nf3 {[%clk 0:02:52]}  e6 {[%clk 0:02:46]} 5. e3 {[%clk 0:02:52]}  Nbd7 {[%clk 0:02:45]} 6. Bd3 {[%clk 0:02:47]}  Bxd3 {[%clk 0:02:44]} 7. Qxd3 {[%clk 0:02:48]}  c5 {[%clk 0:02:44]} 8. Nbd2 {[%clk 0:02:47]}  Be7 {[%clk 0:02:40]} 9. c3 {[%clk 0:02:41]}  h6 {[%clk 0:02:37]} 10. Bf4 {[%clk 0:02:41]}  Rc8 {[%clk 0:02:34]} 11. O-O-O {[%clk 0:02:39]}  Qa5 {[%clk 0:02:30]} 12. Kb1 {[%clk 0:02:38]}  c4 {[%clk 0:02:29]} 13. Qc2 {[%clk 0:02:36]}  b5 {[%clk 0:02:30]} 14. e4 {[%clk 0:02:36]}  dxe4 {[%clk 0:02:27]} 15. Nxe4 {[%clk 0:02:36]}  Nxe4 {[%clk 0:02:28]} 16. Qxe4 {[%clk 0:02:36]}  Nf6 {[%clk 0:02:22]} 17. Qb7 {[%clk 0:02:31]}  Qd8 {[%clk 0:00:25]} 18. Qxb5+ {[%clk 0:02:02]}  Qd7 {[%clk 0:00:25]} 19. Qxd7+ {[%clk 0:02:01]}  Nxd7 {[%clk 0:00:24]} 20. d5 {[%clk 0:01:57]}  exd5 {[%clk 0:00:22]} 21. Rxd5 {[%clk 0:01:56]}  Nb6 {[%clk 0:00:22]} 22. Re5 {[%clk 0:01:49]}  Kf8 {[%clk 0:00:22]} 23. Rhe1 {[%clk 0:01:38]}  Bf6 {[%clk 0:00:20]} 24. Ra5 {[%clk 0:01:24]}  g6 {[%clk 0:00:21]} 25. Rxa7 {[%clk 0:01:20]}  Nd5 {[%clk 0:00:20]} 26. Bd6+ {[%clk 0:01:05]}  Kg7 {[%clk 0:00:19]} 27. Ne5 {[%clk 0:01:01]} 1-0


[Site "https://www.chess.com"]

[Event "Titled Tuesday Blitz May 30 Late 2023"]
[White "Srdanovic, Jovana"]
[Black "Omranalhosani21"]
[WhiteFideId "954810"]
[WhiteElo "2169"]
[BlackElo "2586"]
[Result "1-0"]
[Round "04"]
[TimeControl "180+2"]
[Date "2023.05.31"]
[WhiteClock "0:00:06"]
[BlackClock "0:00:18"]

1. d4 {[%clk 0:03:00]}  c5 {[%clk 0:02:55]} 2. d5 {[%clk 0:03:00]}  e5 {[%clk 0:02:55]} 3. e4 {[%clk 0:02:58]}  Nf6 {[%clk 0:02:54]} 4. Nc3 {[%clk 0:02:56]}  d6 {[%clk 0:02:54]} 5. f3 {[%clk 0:02:51]}  g6 {[%clk 0:02:41]} 6. a4 {[%clk 0:02:50]}  h5 {[%clk 0:02:40]} 7. Bd3 {[%clk 0:02:50]}  Bh6 {[%clk 0:02:41]} 8. Bxh6 {[%clk 0:02:49]}  Rxh6 {[%clk 0:02:42]} 9. Qd2 {[%clk 0:02:48]}  Rh8 {[%clk 0:02:39]} 10. Nge2 {[%clk 0:02:46]}  h4 {[%clk 0:02:39]} 11. O-O-O {[%clk 0:02:36]}  a6 {[%clk 0:02:36]} 12. f4 {[%clk 0:02:36]}  Qe7 {[%clk 0:02:26]} 13. Rdf1 {[%clk 0:02:28]}  Nbd7 {[%clk 0:02:17]} 14. fxe5 {[%clk 0:02:28]}  Nxe5 {[%clk 0:02:12]} 15. h3 {[%clk 0:02:28]}  Bd7 {[%clk 0:02:11]} 16. Ng1 {[%clk 0:02:11]}  b5 {[%clk 0:02:08]} 17. Nf3 {[%clk 0:02:02]}  b4 {[%clk 0:02:05]} 18. Nd1 {[%clk 0:01:52]}  Nxd3+ {[%clk 0:02:01]} 19. Qxd3 {[%clk 0:01:48]}  Bxa4 {[%clk 0:02:01]} 20. Re1 {[%clk 0:01:48]}  Bb5 {[%clk 0:02:01]} 21. Qd2 {[%clk 0:01:43]}  Nd7 {[%clk 0:01:56]} 22. e5 {[%clk 0:01:43]}  dxe5 {[%clk 0:01:52]} 23. Nxe5 {[%clk 0:01:32]}  Nxe5 {[%clk 0:01:43]} 24. Rxe5 {[%clk 0:01:32]}  Qxe5 {[%clk 0:01:44]} 25. Re1 {[%clk 0:01:33]}  Qxe1 {[%clk 0:01:45]} 26. Qxe1+ {[%clk 0:01:33]}  Kd7 {[%clk 0:01:44]} 27. Qf2 {[%clk 0:01:29]}  Rae8 {[%clk 0:01:38]} 28. Qxf7+ {[%clk 0:01:24]}  Kd6 {[%clk 0:01:38]} 29. Qxg6+ {[%clk 0:01:19]}  Kxd5 {[%clk 0:01:38]} 30. Qg5+ {[%clk 0:01:13]}  Kc6 {[%clk 0:01:35]} 31. Ne3 {[%clk 0:01:12]}  Rhf8 {[%clk 0:01:31]} 32. Qd5+ {[%clk 0:01:09]}  Kb6 {[%clk 0:01:28]} 33. Qd6+ {[%clk 0:00:52]}  Bc6 {[%clk 0:01:20]} 34. Nd5+ {[%clk 0:00:47]}  Kb5 {[%clk 0:01:17]} 35. Nc7+ {[%clk 0:00:40]}  Kb6 {[%clk 0:01:17]} 36. Nxe8 {[%clk 0:00:35]}  Rxe8 {[%clk 0:01:18]} 37. Qh6 {[%clk 0:00:32]}  Re4 {[%clk 0:01:14]} 38. Kd2 {[%clk 0:00:27]}  a5 {[%clk 0:01:14]} 39. Qh8 {[%clk 0:00:26]}  Rd4+ {[%clk 0:01:06]} 40. Ke3 {[%clk 0:00:24]}  Bxg2 {[%clk 0:01:05]} 41. Qh6+ {[%clk 0:00:17]}  Bc6 {[%clk 0:01:04]} 42. Qf8 {[%clk 0:00:16]}  Re4+ {[%clk 0:01:02]} 43. Kd3 {[%clk 0:00:16]}  c4+ {[%clk 0:01:02]} 44. Kd2 {[%clk 0:00:14]}  Rd4+ {[%clk 0:00:55]} 45. Ke3 {[%clk 0:00:13]}  Rd7 {[%clk 0:00:52]} 46. Qb8+ {[%clk 0:00:13]}  Kc5 {[%clk 0:00:52]} 47. Qe5+ {[%clk 0:00:11]}  Bd5 {[%clk 0:00:51]} 48. Qd4+ {[%clk 0:00:10]}  Kc6 {[%clk 0:00:52]} 49. Qf6+ {[%clk 0:00:10]}  Rd6 {[%clk 0:00:52]} 50. Qxh4 {[%clk 0:00:10]}  Re6+ {[%clk 0:00:51]} 51. Kd2 {[%clk 0:00:08]}  Rg6 {[%clk 0:00:50]} 52. Qh7 {[%clk 0:00:06]}  Rg2+ {[%clk 0:00:50]} 53. Kc1 {[%clk 0:00:05]}  c3 {[%clk 0:00:46]} 54. bxc3 {[%clk 0:00:04]}  bxc3 {[%clk 0:00:47]} 55. Qh6+ {[%clk 0:00:04]}  Kb5 {[%clk 0:00:47]} 56. Qe3 {[%clk 0:00:03]}  Kb4 {[%clk 0:00:35]} 57. Qd4+ {[%clk 0:00:02]}  Bc4 {[%clk 0:00:32]} 58. h4 {[%clk 0:00:02]}  Re2 {[%clk 0:00:29]} 59. Qd6+ {[%clk 0:00:03]}  Ka4 {[%clk 0:00:29]} 60. Qc6+ {[%clk 0:00:02]}  Ka3 {[%clk 0:00:29]} 61. Qc5+ {[%clk 0:00:03]}  Ka2 {[%clk 0:00:16]} 62. Qxc4+ {[%clk 0:00:04]}  Ka1 {[%clk 0:00:17]} 63. Qxe2 {[%clk 0:00:04]}  Ka2 {[%clk 0:00:17]} 64. Qc4+ {[%clk 0:00:05]}  Ka3 {[%clk 0:00:18]} 65. Qxc3+ {[%clk 0:00:05]}  Ka4 {[%clk 0:00:18]} 66. h5 {[%clk 0:00:06]} 1-0


[Site "https://www.chess.com"]

[Event "Titled Tuesday Blitz May 30 Late 2023"]
[White "Bayo Milagro, Alvaro"]
[Black "micke12a"]
[WhiteFideId "22275240"]
[WhiteElo "2270"]
[BlackElo "2404"]
[Result "1-0"]
[Round "04"]
[TimeControl "180+2"]
[Date "2023.05.31"]
[WhiteClock "0:00:08"]
[BlackClock "0:00:09"]

1. Nf3 {[%clk 0:03:00]}  Nf6 {[%clk 0:02:59]} 2. c4 {[%clk 0:03:00]}  e6 {[%clk 0:02:59]} 3. g3 {[%clk 0:03:00]}  d5 {[%clk 0:02:58]} 4. Bg2 {[%clk 0:02:59]}  dxc4 {[%clk 0:02:55]} 5. O-O {[%clk 0:02:57]}  Nbd7 {[%clk 0:02:51]} 6. Qa4 {[%clk 0:02:53]}  a6 {[%clk 0:02:43]} 7. Qxc4 {[%clk 0:02:48]}  b5 {[%clk 0:02:44]} 8. Qc2 {[%clk 0:02:49]}  Bb7 {[%clk 0:02:43]} 9. a4 {[%clk 0:02:49]}  Be7 {[%clk 0:02:30]} 10. d3 {[%clk 0:02:39]}  c5 {[%clk 0:02:27]} 11. b3 {[%clk 0:02:30]}  O-O {[%clk 0:02:26]} 12. Bb2 {[%clk 0:02:31]}  Qb6 {[%clk 0:02:25]} 13. Nc3 {[%clk 0:02:28]}  Rfc8 {[%clk 0:02:23]} 14. axb5 {[%clk 0:01:41]}  axb5 {[%clk 0:02:20]} 15. Rxa8 {[%clk 0:01:41]}  Bxa8 {[%clk 0:02:19]} 16. Ra1 {[%clk 0:01:40]}  Bb7 {[%clk 0:02:17]} 17. Qd2 {[%clk 0:01:35]}  Nd5 {[%clk 0:02:13]} 18. Nxd5 {[%clk 0:01:33]}  Bxd5 {[%clk 0:02:12]} 19. e4 {[%clk 0:01:19]}  Bb7 {[%clk 0:02:03]} 20. Ne5 {[%clk 0:01:16]}  Nxe5 {[%clk 0:02:00]} 21. Bxe5 {[%clk 0:01:17]}  Ra8 {[%clk 0:01:50]} 22. Rxa8+ {[%clk 0:01:15]}  Bxa8 {[%clk 0:01:51]} 23. h4 {[%clk 0:01:09]}  Qa6 {[%clk 0:01:46]} 24. Qb2 {[%clk 0:01:03]}  Bf8 {[%clk 0:01:31]} 25. h5 {[%clk 0:01:02]}  h6 {[%clk 0:01:27]} 26. Bf1 {[%clk 0:00:56]}  Bc6 {[%clk 0:01:25]} 27. Bf4 {[%clk 0:00:51]}  Qb7 {[%clk 0:01:23]} 28. Be3 {[%clk 0:00:49]}  Be7 {[%clk 0:01:06]} 29. Qc1 {[%clk 0:00:42]}  c4 {[%clk 0:01:02]} 30. bxc4 {[%clk 0:00:41]}  bxc4 {[%clk 0:01:03]} 31. Qxc4 {[%clk 0:00:40]}  Bb5 {[%clk 0:01:02]} 32. Qc2 {[%clk 0:00:37]}  Qa6 {[%clk 0:00:59]} 33. Bd4 {[%clk 0:00:28]}  Kh7 {[%clk 0:00:52]} 34. Bb2 {[%clk 0:00:25]}  Qa5 {[%clk 0:00:46]} 35. Qc3 {[%clk 0:00:20]}  Qxc3 {[%clk 0:00:34]} 36. Bxc3 {[%clk 0:00:21]}  g6 {[%clk 0:00:33]} 37. hxg6+ {[%clk 0:00:19]}  Kxg6 {[%clk 0:00:34]} 38. Kg2 {[%clk 0:00:17]}  f5 {[%clk 0:00:31]} 39. f3 {[%clk 0:00:15]}  Bf6 {[%clk 0:00:30]} 40. Bxf6 {[%clk 0:00:15]}  Kxf6 {[%clk 0:00:30]} 41. e5+ {[%clk 0:00:14]}  Kg6 {[%clk 0:00:22]} 42. f4 {[%clk 0:00:11]}  Bc6+ {[%clk 0:00:21]} 43. Kf2 {[%clk 0:00:11]}  Kf7 {[%clk 0:00:16]} 44. Ke3 {[%clk 0:00:10]}  Ke7 {[%clk 0:00:15]} 45. Kd4 {[%clk 0:00:10]}  Kd7 {[%clk 0:00:16]} 46. Kc5 {[%clk 0:00:11]}  Kc7 {[%clk 0:00:17]} 47. d4 {[%clk 0:00:10]}  Bd7 {[%clk 0:00:15]} 48. Bc4 {[%clk 0:00:09]}  Bc8 {[%clk 0:00:15]} 49. d5 {[%clk 0:00:09]}  exd5 {[%clk 0:00:16]} 50. Bxd5 {[%clk 0:00:10]}  Kd7 {[%clk 0:00:15]} 51. Bb3 {[%clk 0:00:09]}  Ke7 {[%clk 0:00:15]} 52. Kd4 {[%clk 0:00:07]}  Bb7 {[%clk 0:00:15]} 53. Ke3 {[%clk 0:00:08]}  Bc6 {[%clk 0:00:13]} 54. Kf2 {[%clk 0:00:08]}  Kf8 {[%clk 0:00:11]} 55. Ke2 {[%clk 0:00:07]}  Kg7 {[%clk 0:00:10]} 56. Ke3 {[%clk 0:00:07]}  Kg6 {[%clk 0:00:08]} 57. Kd4 {[%clk 0:00:08]}  Kh5 {[%clk 0:00:09]} 58. Bd1+ {[%clk 0:00:08]}  Kg6 {[%clk 0:00:08]} 59. Kc5 {[%clk 0:00:08]}  Be8 {[%clk 0:00:09]} 60. Kd6 {[%clk 0:00:09]}  Kf7 {[%clk 0:00:09]} 61. Bc2 {[%clk 0:00:09]}  Kf8 {[%clk 0:00:10]} 62. Bxf5 {[%clk 0:00:08]}  Bh5 {[%clk 0:00:10]} 63. Bd3 {[%clk 0:00:08]}  Bf3 {[%clk 0:00:10]} 64. f5 {[%clk 0:00:08]}  Bg4 {[%clk 0:00:10]} 65. e6 {[%clk 0:00:08]}  h5 {[%clk 0:00:10]} 66. f6 {[%clk 0:00:08]}  Ke8 {[%clk 0:00:10]} 67. Bb5+ {[%clk 0:00:07]}  Kf8 {[%clk 0:00:09]} 68. e7+ {[%clk 0:00:08]} 1-0


[Site "https://www.chess.com"]